{"text_format":"3","workbook":"xlsx","n_sheets":1,"sheets":["Raport z wydatków"],"not_rendered":{"images":2,"defined_names":12},"read":"whole","date_system":"1900"}

{"sheet":"Raport z wydatków","index":0,"n_rows":24,"n_cols":13,"rows_kept":24,"merged":[[3,2,3,3],[3,5,3,6],[3,9,3,10],[4,2,4,3],[4,5,4,6],[4,9,4,10],[5,2,5,3],[5,5,5,6],[5,9,5,10],[6,2,6,3],[6,5,6,6],[6,9,6,10],[7,9,7,10]]}
[null,"RAPORT Z WYDATKÓW"]
[null,"CONTOSO, LTD"]
[null,"ul. Główna 123, 00-123 Szczecin"]
[null,"TELEFON",4255550121,null,"IMIĘ I NAZWISKO","Joanna Krawczyk",null,null,"CEL","Coroczne seminarium na temat sprzedaży",null,"STAWKA KILOMETRÓWKI",{"v":1.5,"d":"1.50 zł/kilometr"}]
[null,"FAKS",4255550122,null,"DZIAŁ","Sprzedaż",null,null,"POCZĄTEK",{"$f":"IFERROR(MIN(Wydatki[DATA]),\"\")","v":"2018-06-04"},null,"STAWKA ZA POSIŁKI",{"v":90,"d":"90.00 zł/dzień"}]
[null,"ADRES E-MAIL","info@contoso.com",null,"STANOWISKO","Dyrektor zarządzający",null,null,"KONIEC",{"$f":"IFERROR(MAX(Wydatki[DATA]),\"\")","v":"2018-07-04"},null,"STAWKA ZA HOTEL",{"v":600,"d":"600.00 zł/noc"}]
[null,"WWW","www.contoso.com",null,"KIEROWNIK","Jan Kozłowski",null,null,"PRZYGOTOWANE PRZEZ","Joanna Krawczyk",null,"STAWKA ZA TELEFON",{"v":30,"d":"30.00 zł/dzień"}]
[{"$nulls":8},"ZATWIERDZONE PRZEZ","Jan Kozłowski",null,"INNE — STAWKA",{"v":150,"d":"150.00 zł/dzień"}]
[]
[null,"DATA","KONTO","OPIS","HOTEL","TRANSPORT","POSIŁKI","TELEFON","INNE","LICZNIK KM \n— POCZĄTEK","LICZNIK KM \n— KONIEC","KILOMETRÓWKA \n— SUMA","SUMA "]
[null,{"$f":"TODAY()","v":"2018-06-04"},"Sprzedaż","Kilometrówka",{"$nulls":4},{"v":150,"d":"150.00 zł"},{"v":11378.5,"d":"11,378.5 km"},{"v":11456.2,"d":"11,456.2 km"},{"$f":"IF(COUNTA(Wydatki[[#This Row],[LICZNIK KM \n— POCZĄTEK]:[LICZNIK KM \n— KONIEC]])=2,(Wydatki[[#This Row],[LICZNIK KM \n— KONIEC]]-Wydatki[[#This Row],[LICZNIK KM \n— POCZĄTEK]])*Stawka_kilometrówki,\"\")","v":{"v":116.55000000000109,"d":"116.55 zł"}},{"$f":"IF(COUNTA(Wydatki[[#This Row],[DATA]:[LICZNIK KM \n— KONIEC]])=0,\"\",SUM(Wydatki[[#This Row],[HOTEL]:[TRANSPORT]],Wydatki[[#This Row],[POSIŁKI]:[INNE]],((Wydatki[[#This Row],[LICZNIK KM \n— KONIEC]]-Wydatki[[#This Row],[LICZNIK KM \n— POCZĄTEK]])*(Stawka_kilometrówki))))","v":{"v":266.5500000000011,"d":"266.55 zł"}}]
[null,{"$f":"TODAY()+30","v":"2018-07-04"},"Sprzedaż","Konferencja",{"v":1335,"d":"1,335.00 zł"},{"v":675,"d":"675.00 zł"},{"v":60,"d":"60.00 zł"},null,{"v":15,"d":"15.00 zł"},{"v":11500,"d":"11,500.0 km"},{"v":11560,"d":"11,560.0 km"},{"$f":"IF(COUNTA(Wydatki[[#This Row],[LICZNIK KM \n— POCZĄTEK]:[LICZNIK KM \n— KONIEC]])=2,(Wydatki[[#This Row],[LICZNIK KM \n— KONIEC]]-Wydatki[[#This Row],[LICZNIK KM \n— POCZĄTEK]])*Stawka_kilometrówki,\"\")","v":{"v":90,"d":"90.00 zł"}},{"$f":"IF(COUNTA(Wydatki[[#This Row],[DATA]:[LICZNIK KM \n— KONIEC]])=0,\"\",SUM(Wydatki[[#This Row],[HOTEL]:[TRANSPORT]],Wydatki[[#This Row],[POSIŁKI]:[INNE]],((Wydatki[[#This Row],[LICZNIK KM \n— KONIEC]]-Wydatki[[#This Row],[LICZNIK KM \n— POCZĄTEK]])*(Stawka_kilometrówki))))","v":{"v":2175,"d":"2,175.00 zł"}}]
[{"$nulls":11},{"$f":"IF(COUNTA(Wydatki[[#This Row],[LICZNIK KM \n— POCZĄTEK]:[LICZNIK KM \n— KONIEC]])=2,(Wydatki[[#This Row],[LICZNIK KM \n— KONIEC]]-Wydatki[[#This Row],[LICZNIK KM \n— POCZĄTEK]])*Stawka_kilometrówki,\"\")","v":""},{"$f":"IF(COUNTA(Wydatki[[#This Row],[DATA]:[LICZNIK KM \n— KONIEC]])=0,\"\",SUM(Wydatki[[#This Row],[HOTEL]:[TRANSPORT]],Wydatki[[#This Row],[POSIŁKI]:[INNE]],((Wydatki[[#This Row],[LICZNIK KM \n— KONIEC]]-Wydatki[[#This Row],[LICZNIK KM \n— POCZĄTEK]])*(Stawka_kilometrówki))))","v":""}]
[{"$nulls":11},{"$f":"IF(COUNTA(Wydatki[[#This Row],[LICZNIK KM \n— POCZĄTEK]:[LICZNIK KM \n— KONIEC]])=2,(Wydatki[[#This Row],[LICZNIK KM \n— KONIEC]]-Wydatki[[#This Row],[LICZNIK KM \n— POCZĄTEK]])*Stawka_kilometrówki,\"\")","v":""},{"$f":"IF(COUNTA(Wydatki[[#This Row],[DATA]:[LICZNIK KM \n— KONIEC]])=0,\"\",SUM(Wydatki[[#This Row],[HOTEL]:[TRANSPORT]],Wydatki[[#This Row],[POSIŁKI]:[INNE]],((Wydatki[[#This Row],[LICZNIK KM \n— KONIEC]]-Wydatki[[#This Row],[LICZNIK KM \n— POCZĄTEK]])*(Stawka_kilometrówki))))","v":""}]
[{"$nulls":11},{"$f":"IF(COUNTA(Wydatki[[#This Row],[LICZNIK KM \n— POCZĄTEK]:[LICZNIK KM \n— KONIEC]])=2,(Wydatki[[#This Row],[LICZNIK KM \n— KONIEC]]-Wydatki[[#This Row],[LICZNIK KM \n— POCZĄTEK]])*Stawka_kilometrówki,\"\")","v":""},{"$f":"IF(COUNTA(Wydatki[[#This Row],[DATA]:[LICZNIK KM \n— KONIEC]])=0,\"\",SUM(Wydatki[[#This Row],[HOTEL]:[TRANSPORT]],Wydatki[[#This Row],[POSIŁKI]:[INNE]],((Wydatki[[#This Row],[LICZNIK KM \n— KONIEC]]-Wydatki[[#This Row],[LICZNIK KM \n— POCZĄTEK]])*(Stawka_kilometrówki))))","v":""}]
[{"$nulls":11},{"$f":"IF(COUNTA(Wydatki[[#This Row],[LICZNIK KM \n— POCZĄTEK]:[LICZNIK KM \n— KONIEC]])=2,(Wydatki[[#This Row],[LICZNIK KM \n— KONIEC]]-Wydatki[[#This Row],[LICZNIK KM \n— POCZĄTEK]])*Stawka_kilometrówki,\"\")","v":""},{"$f":"IF(COUNTA(Wydatki[[#This Row],[DATA]:[LICZNIK KM \n— KONIEC]])=0,\"\",SUM(Wydatki[[#This Row],[HOTEL]:[TRANSPORT]],Wydatki[[#This Row],[POSIŁKI]:[INNE]],((Wydatki[[#This Row],[LICZNIK KM \n— KONIEC]]-Wydatki[[#This Row],[LICZNIK KM \n— POCZĄTEK]])*(Stawka_kilometrówki))))","v":""}]
[{"$nulls":11},{"$f":"IF(COUNTA(Wydatki[[#This Row],[LICZNIK KM \n— POCZĄTEK]:[LICZNIK KM \n— KONIEC]])=2,(Wydatki[[#This Row],[LICZNIK KM \n— KONIEC]]-Wydatki[[#This Row],[LICZNIK KM \n— POCZĄTEK]])*Stawka_kilometrówki,\"\")","v":""},{"$f":"IF(COUNTA(Wydatki[[#This Row],[DATA]:[LICZNIK KM \n— KONIEC]])=0,\"\",SUM(Wydatki[[#This Row],[HOTEL]:[TRANSPORT]],Wydatki[[#This Row],[POSIŁKI]:[INNE]],((Wydatki[[#This Row],[LICZNIK KM \n— KONIEC]]-Wydatki[[#This Row],[LICZNIK KM \n— POCZĄTEK]])*(Stawka_kilometrówki))))","v":""}]
[{"$nulls":11},{"$f":"IF(COUNTA(Wydatki[[#This Row],[LICZNIK KM \n— POCZĄTEK]:[LICZNIK KM \n— KONIEC]])=2,(Wydatki[[#This Row],[LICZNIK KM \n— KONIEC]]-Wydatki[[#This Row],[LICZNIK KM \n— POCZĄTEK]])*Stawka_kilometrówki,\"\")","v":""},{"$f":"IF(COUNTA(Wydatki[[#This Row],[DATA]:[LICZNIK KM \n— KONIEC]])=0,\"\",SUM(Wydatki[[#This Row],[HOTEL]:[TRANSPORT]],Wydatki[[#This Row],[POSIŁKI]:[INNE]],((Wydatki[[#This Row],[LICZNIK KM \n— KONIEC]]-Wydatki[[#This Row],[LICZNIK KM \n— POCZĄTEK]])*(Stawka_kilometrówki))))","v":""}]
[{"$nulls":11},{"$f":"IF(COUNTA(Wydatki[[#This Row],[LICZNIK KM \n— POCZĄTEK]:[LICZNIK KM \n— KONIEC]])=2,(Wydatki[[#This Row],[LICZNIK KM \n— KONIEC]]-Wydatki[[#This Row],[LICZNIK KM \n— POCZĄTEK]])*Stawka_kilometrówki,\"\")","v":""},{"$f":"IF(COUNTA(Wydatki[[#This Row],[DATA]:[LICZNIK KM \n— KONIEC]])=0,\"\",SUM(Wydatki[[#This Row],[HOTEL]:[TRANSPORT]],Wydatki[[#This Row],[POSIŁKI]:[INNE]],((Wydatki[[#This Row],[LICZNIK KM \n— KONIEC]]-Wydatki[[#This Row],[LICZNIK KM \n— POCZĄTEK]])*(Stawka_kilometrówki))))","v":""}]
[{"$nulls":11},{"$f":"IF(COUNTA(Wydatki[[#This Row],[LICZNIK KM \n— POCZĄTEK]:[LICZNIK KM \n— KONIEC]])=2,(Wydatki[[#This Row],[LICZNIK KM \n— KONIEC]]-Wydatki[[#This Row],[LICZNIK KM \n— POCZĄTEK]])*Stawka_kilometrówki,\"\")","v":""},{"$f":"IF(COUNTA(Wydatki[[#This Row],[DATA]:[LICZNIK KM \n— KONIEC]])=0,\"\",SUM(Wydatki[[#This Row],[HOTEL]:[TRANSPORT]],Wydatki[[#This Row],[POSIŁKI]:[INNE]],((Wydatki[[#This Row],[LICZNIK KM \n— KONIEC]]-Wydatki[[#This Row],[LICZNIK KM \n— POCZĄTEK]])*(Stawka_kilometrówki))))","v":""}]
[{"$nulls":11},{"$f":"IF(COUNTA(Wydatki[[#This Row],[LICZNIK KM \n— POCZĄTEK]:[LICZNIK KM \n— KONIEC]])=2,(Wydatki[[#This Row],[LICZNIK KM \n— KONIEC]]-Wydatki[[#This Row],[LICZNIK KM \n— POCZĄTEK]])*Stawka_kilometrówki,\"\")","v":""},{"$f":"IF(COUNTA(Wydatki[[#This Row],[DATA]:[LICZNIK KM \n— KONIEC]])=0,\"\",SUM(Wydatki[[#This Row],[HOTEL]:[TRANSPORT]],Wydatki[[#This Row],[POSIŁKI]:[INNE]],((Wydatki[[#This Row],[LICZNIK KM \n— KONIEC]]-Wydatki[[#This Row],[LICZNIK KM \n— POCZĄTEK]])*(Stawka_kilometrówki))))","v":""}]
[null,"SUMY",null,null,{"$f":"SUBTOTAL(109,Wydatki[HOTEL])","v":{"v":1335,"d":"1,335.00 zł"}},{"$f":"SUBTOTAL(109,Wydatki[TRANSPORT])","v":{"v":675,"d":"675.00 zł"}},{"$f":"SUBTOTAL(109,Wydatki[POSIŁKI])","v":{"v":60,"d":"60.00 zł"}},{"$f":"SUBTOTAL(109,Wydatki[TELEFON])","v":0},{"$f":"SUBTOTAL(109,Wydatki[INNE])","v":{"v":165,"d":"165.00 zł"}},{"$nulls":3},{"$f":"SUBTOTAL(109,Wydatki[[SUMA ]])","v":{"v":2441.550000000001,"d":"2,441.55 zł"}}]
[{"$nulls":11},"ZALICZKI",{"v":0,"d":"0.00 zł"}]
[{"$nulls":11},"SUMA",{"$f":"Wydatki[[#Totals],[SUMA ]]-Zaliczki","v":{"v":2441.550000000001,"d":"2,441.55 zł"}}]